[Event "*** Titled Tuesday Blitz"]
[Site "Chess.com"]
[Date "2020.05.12"]
[Round "5"]
[White "Niclox"]
[Black "temus_galaktionov"]
[Result "1-0"]
[WhiteElo "2592"]
[BlackElo "2737"]
[TimeControl "180+1"]
[EndTime "10:57:22 PDT"]
[Termination "Niclox won by resignation"]

1. e4 {[%clk 0:03:00.9]} 1... c6 {[%clk 0:03:00.9]} 2. d4 {[%clk 0:03:00.2]}
2... g6 {[%clk 0:03:01.8]} 3. h4 {[%clk 0:02:58.7]} 3... Bg7 {[%clk 0:03:02.7]}
4. h5 {[%clk 0:02:57.9]} 4... d6 {[%clk 0:03:03.4]} 5. h6 {[%clk 0:02:57.5]}
5... Bf6 {[%clk 0:03:03.4]} 6. f4 {[%clk 0:02:52.2]} 6... e5 {[%clk 0:03:02.1]}
7. Nf3 {[%clk 0:02:44.7]} 7... exd4 {[%clk 0:02:57.8]} 8. Nxd4 {[%clk
0:02:43.8]} 8... Bh4+ {[%clk 0:02:57.1]} 9. Ke2 {[%clk 0:02:33.5]} 9... Bg4+
{[%clk 0:02:55.7]} 10. Nf3 {[%clk 0:02:32.2]} 10... Bf6 {[%clk 0:02:50.2]} 11.
Kf2 {[%clk 0:02:25.2]} 11... Qb6+ {[%clk 0:02:46.5]} 12. Kg3 {[%clk 0:02:24]}
12... Bxf3 {[%clk 0:02:28.4]} 13. gxf3 {[%clk 0:02:20.2]} 13... Bxb2 {[%clk
0:02:22.3]} 14. Bxb2 {[%clk 0:02:15.5]} 14... Qxb2 {[%clk 0:02:23.2]} 15. Nd2
{[%clk 0:02:16.4]} 15... Qd4 {[%clk 0:02:21.9]} 16. Rb1 {[%clk 0:02:13.7]} 16...
b6 {[%clk 0:02:21]} 17. Nc4 {[%clk 0:02:05.2]} 17... Qxd1 {[%clk 0:02:13.3]} 18.
Rxd1 {[%clk 0:02:06.1]} 18... d5 {[%clk 0:02:01.3]} 19. exd5 {[%clk 0:02:03.4]}
19... cxd5 {[%clk 0:02:01.4]} 20. Rxd5 {[%clk 0:02:04.3]} 20... Nf6 {[%clk
0:02:00.5]} 21. Re5+ {[%clk 0:01:59]} 21... Kf8 {[%clk 0:01:58.4]} 22. Bh3
{[%clk 0:01:47.4]} 22... Nc6 {[%clk 0:01:56.9]} 23. Re3 {[%clk 0:01:44.9]} 23...
Rd8 {[%clk 0:01:48.5]} 24. Ne5 {[%clk 0:01:39.5]} 24... Nb4 {[%clk 0:01:41.1]}
25. c4 {[%clk 0:01:16.8]} 25... Nc2 {[%clk 0:01:20.8]} 26. Rc3 {[%clk
0:01:09.3]} 26... Nd4 {[%clk 0:01:19.4]} 27. Ra3 {[%clk 0:01:09.1]} 27... a5
{[%clk 0:01:13.1]} 28. Kh4 {[%clk 0:01:05.9]} 28... Ng8 {[%clk 0:01:03.7]} 29.
Nd7+ {[%clk 0:01:05.1]} 29... Ke7 {[%clk 0:01:03.7]} 30. Nxb6 {[%clk 0:01:06]}
30... Nxh6 {[%clk 0:01:01.5]} 31. Rxa5 {[%clk 0:01:02.1]} 31... Nxf3+ {[%clk
0:00:58.8]} 32. Kg3 {[%clk 0:01:02.3]} 32... Nd4 {[%clk 0:00:58]} 33. Re1+
{[%clk 0:01:00.5]} 33... Kf8 {[%clk 0:00:57]} 34. Rd5 {[%clk 0:00:56.1]} 34...
Nhf5+ {[%clk 0:00:54.2]} 35. Bxf5 {[%clk 0:00:51.6]} 35... Nxf5+ {[%clk
0:00:55.1]} 36. Kf2 {[%clk 0:00:51.1]} 36... Kg7 {[%clk 0:00:53.3]} 37. a4
{[%clk 0:00:48.2]} 37... Rb8 {[%clk 0:00:34]} 38. a5 {[%clk 0:00:47.6]} 38...
Rb7 {[%clk 0:00:34.9]} 39. c5 {[%clk 0:00:45.4]} 39... Rc7 {[%clk 0:00:31.7]}
40. a6 {[%clk 0:00:44.9]} 40... Ra7 {[%clk 0:00:31.1]} 41. Ra1 {[%clk
0:00:42.9]} 41... Rb8 {[%clk 0:00:30.4]} 42. Rd7 {[%clk 0:00:38.2]} 42... Rxd7
{[%clk 0:00:23.1]} 43. Nxd7 {[%clk 0:00:39.1]} 43... Rb2+ {[%clk 0:00:20.5]} 44.
Kf3 {[%clk 0:00:39]} 44... Nd4+ {[%clk 0:00:20.8]} 45. Ke4 {[%clk 0:00:39]}
45... Nb5 {[%clk 0:00:20.7]} 46. a7 {[%clk 0:00:38]} 46... Nxa7 {[%clk
0:00:21.3]} 47. Rxa7 {[%clk 0:00:38.9]} 47... Rc2 {[%clk 0:00:20.5]} 48. Rc7
{[%clk 0:00:24.7]} 48... h5 {[%clk 0:00:20.1]} 49. Ne5 {[%clk 0:00:24.5]} 49...
h4 {[%clk 0:00:20.4]} 50. Rxf7+ {[%clk 0:00:22.3]} 50... Kg8 {[%clk 0:00:20.3]}
51. Rf6 {[%clk 0:00:14.2]} 51... h3 {[%clk 0:00:19]} 52. Rxg6+ {[%clk
0:00:13.8]} 52... Kh7 {[%clk 0:00:18.9]} 53. Rg1 {[%clk 0:00:14]} 53... Rxc5
{[%clk 0:00:18.2]} 54. Rh1 {[%clk 0:00:14.1]} 54... Rc3 {[%clk 0:00:18.3]} 55.
Nf3 {[%clk 0:00:13.9]} 55... Kg6 {[%clk 0:00:18.2]} 56. Rxh3 {[%clk 0:00:13.5]}
56... Kf6 {[%clk 0:00:18.8]} 57. Rh6+ {[%clk 0:00:13.2]} 57... Kg7 {[%clk
0:00:18.9]} 58. Ra6 {[%clk 0:00:13.1]} 58... Rb3 {[%clk 0:00:18.3]} 59. Ne5
{[%clk 0:00:12.5]} 59... Rb8 {[%clk 0:00:16.6]} 60. f5 {[%clk 0:00:11.8]} 60...
Rf8 {[%clk 0:00:14.1]} 61. Rg6+ {[%clk 0:00:10.1]} 61... Kh7 {[%clk 0:00:13.9]}
62. Rg1 {[%clk 0:00:09.2]} 62... Rf6 {[%clk 0:00:10.2]} 63. Kf4 {[%clk
0:00:08.9]} 63... Kh6 {[%clk 0:00:09]} 64. Rg6+ {[%clk 0:00:07.8]} 64... Rxg6
{[%clk 0:00:07.7]} 65. fxg6 {[%clk 0:00:08.7]} 65... Kg7 {[%clk 0:00:07.4]} 66.
Kg5 {[%clk 0:00:09.6]} 66... Kg8 {[%clk 0:00:08.3]} 67. Kf6 {[%clk 0:00:09]}
67... Kf8 {[%clk 0:00:07.8]} 68. Nf7 {[%clk 0:00:08.4]} 68... Kg8 {[%clk
0:00:08]} 69. Nh6+ {[%clk 0:00:07.8]} 69... Kf8 {[%clk 0:00:07.2]} 70. g7+
{[%clk 0:00:07.8]} 70... Ke8 {[%clk 0:00:08.1]} 71. g8=Q+ {[%clk 0:00:08.7]}
71... Kd7 {[%clk 0:00:09]} 72. Qd5+ {[%clk 0:00:08.3]} 1-0

[Event "*** Titled Tuesday Blitz"]
[Site "Chess.com"]
[Date "2020.05.12"]
[Round "5"]
[White "Biranidun"]
[Black "TengisChess"]
[Result "1-0"]
[WhiteElo "2681"]
[BlackElo "2492"]
[TimeControl "180+1"]
[EndTime "10:57:23 PDT"]
[Termination "Biranidun won by resignation"]

1. e4 {[%clk 0:03:00.9]} 1... c6 {[%clk 0:02:59.3]} 2. d4 {[%clk 0:03:00]} 2...
d5 {[%clk 0:03:00.2]} 3. e5 {[%clk 0:03:00.3]} 3... Bf5 {[%clk 0:02:59.7]} 4.
Nf3 {[%clk 0:03:00.9]} 4... e6 {[%clk 0:02:59.2]} 5. Be2 {[%clk 0:03:01.6]} 5...
Ne7 {[%clk 0:02:58.7]} 6. O-O {[%clk 0:03:01.8]} 6... Nd7 {[%clk 0:02:58.5]} 7.
Nbd2 {[%clk 0:03:02.1]} 7... h6 {[%clk 0:02:58.4]} 8. Nb3 {[%clk 0:03:02.3]}
8... g5 {[%clk 0:02:57.9]} 9. a4 {[%clk 0:03:00]} 9... Ng6 {[%clk 0:02:48.8]}
10. a5 {[%clk 0:02:57.7]} 10... a6 {[%clk 0:02:48.1]} 11. Be3 {[%clk 0:02:54.5]}
11... Be7 {[%clk 0:02:46.3]} 12. Ne1 {[%clk 0:02:53.1]} 12... Nf4 {[%clk
0:02:43.4]} 13. Bf3 {[%clk 0:02:47.2]} 13... h5 {[%clk 0:02:41.1]} 14. g3 {[%clk
0:02:47]} 14... Nh3+ {[%clk 0:02:39.5]} 15. Kh1 {[%clk 0:02:43.1]} 15... g4
{[%clk 0:02:40.1]} 16. Bg2 {[%clk 0:02:43.6]} 16... h4 {[%clk 0:02:39.3]} 17.
Bxh3 {[%clk 0:02:42.3]} 17... gxh3 {[%clk 0:02:18.6]} 18. g4 {[%clk 0:02:42.6]}
18... Bg6 {[%clk 0:02:17.6]} 19. Nd3 {[%clk 0:02:41.2]} 19... Bg5 {[%clk
0:02:11.9]} 20. f4 {[%clk 0:02:41.2]} 20... Be4+ {[%clk 0:02:12.1]} 21. Kg1
{[%clk 0:02:41.4]} 21... Be7 {[%clk 0:02:11.6]} 22. Nf2 {[%clk 0:02:37.7]} 22...
Bg2 {[%clk 0:02:11.7]} 23. Re1 {[%clk 0:02:38.1]} 23... Rg8 {[%clk 0:02:12]} 24.
g5 {[%clk 0:02:25]} 24... Nf8 {[%clk 0:02:09.5]} 25. Qg4 {[%clk 0:02:23.1]}
25... Ng6 {[%clk 0:02:09.6]} 26. Nxh3 {[%clk 0:02:21.1]} 26... Be4 {[%clk
0:02:08.9]} 27. Qe2 {[%clk 0:02:14.2]} 27... Bf8 {[%clk 0:02:02.6]} 28. Nf2
{[%clk 0:02:12.8]} 28... Bf5 {[%clk 0:02:02.9]} 29. Ng4 {[%clk 0:02:06.7]} 29...
Bxg4 {[%clk 0:02:00.4]} 30. Qxg4 {[%clk 0:02:05.8]} 30... Ne7 {[%clk 0:02:01.3]}
31. Nc5 {[%clk 0:02:04.2]} 31... Nf5 {[%clk 0:02:00.9]} 32. Nd3 {[%clk
0:01:55.8]} 32... Rc8 {[%clk 0:01:57]} 33. Bf2 {[%clk 0:01:55.2]} 33... Be7
{[%clk 0:01:42.7]} 34. Kh1 {[%clk 0:01:53.3]} 34... Rh8 {[%clk 0:01:41.1]} 35.
c3 {[%clk 0:01:47.9]} 35... h3 {[%clk 0:01:40.8]} 36. Rg1 {[%clk 0:01:46.5]}
36... Kd7 {[%clk 0:01:40.3]} 37. b4 {[%clk 0:01:45.5]} 37... Qg8 {[%clk
0:01:36.6]} 38. Raf1 {[%clk 0:01:40.7]} 38... Qg6 {[%clk 0:01:36.2]} 39. Rd1
{[%clk 0:01:34.2]} 39... Rcg8 {[%clk 0:01:34.5]} 40. Rge1 {[%clk 0:01:33]} 40...
Kc8 {[%clk 0:01:34.1]} 41. Bg3 {[%clk 0:01:27.6]} 41... Rh5 {[%clk 0:01:30.8]}
42. Nf2 {[%clk 0:01:27.2]} 42... Rgh8 {[%clk 0:01:30.2]} 43. Rd3 {[%clk
0:01:25.5]} 43... Rh4 {[%clk 0:01:30]} 44. Bxh4 {[%clk 0:01:23.8]} 44... Rxh4
{[%clk 0:01:30.9]} 45. Qf3 {[%clk 0:01:23.9]} 45... Ng7 {[%clk 0:01:27.2]} 46.
Nxh3 {[%clk 0:01:19.7]} 46... Qh7 {[%clk 0:01:14.2]} 47. Kg2 {[%clk 0:01:13.7]}
47... Nf5 {[%clk 0:01:13.9]} 48. Kf2 {[%clk 0:01:08.4]} 48... Kd7 {[%clk
0:01:10]} 49. Rg1 {[%clk 0:01:07.6]} 49... Qg6 {[%clk 0:01:09.5]} 50. Ke2 {[%clk
0:01:05.7]} 50... Rh8 {[%clk 0:01:06.6]} 51. Kd2 {[%clk 0:01:04.3]} 51... Nh4
{[%clk 0:01:06.2]} 52. Qg4 {[%clk 0:01:04.3]} 52... Qh7 {[%clk 0:01:01.6]} 53.
Rf1 {[%clk 0:00:52.3]} 53... Qe4 {[%clk 0:01:00.4]} 54. Re3 {[%clk 0:00:50.4]}
54... Qg6 {[%clk 0:00:59.4]} 55. Rf2 {[%clk 0:00:47.3]} 55... Nf5 {[%clk
0:00:59]} 56. Rd3 {[%clk 0:00:45.9]} 56... Rh4 {[%clk 0:00:58.9]} 57. Qf3 {[%clk
0:00:43.4]} 57... Qh7 {[%clk 0:00:58.9]} 58. Qg2 {[%clk 0:00:40]} 58... Qh5
{[%clk 0:00:57.6]} 59. Ng1 {[%clk 0:00:37.9]} 59... Rg4 {[%clk 0:00:57.2]} 60.
Qf1 {[%clk 0:00:35.1]} 60... Rh4 {[%clk 0:00:52.8]} 61. h3 {[%clk 0:00:34.2]}
61... Qh7 {[%clk 0:00:51.7]} 62. Rg2 {[%clk 0:00:32.3]} 62... Bd8 {[%clk
0:00:51.4]} 63. Rg4 {[%clk 0:00:32.4]} 63... Rh5 {[%clk 0:00:51]} 64. Qg2 {[%clk
0:00:31.7]} 64... Ne7 {[%clk 0:00:50.6]} 65. Ne2 {[%clk 0:00:31.7]} 65... Qg6
{[%clk 0:00:43.7]} 66. Ng3 {[%clk 0:00:29.4]} 66... Rh7 {[%clk 0:00:43.2]} 67.
h4 {[%clk 0:00:29.8]} 67... Nf5 {[%clk 0:00:40.1]} 68. h5 {[%clk 0:00:29.2]}
68... Rxh5 {[%clk 0:00:37.7]} 69. Nxh5 {[%clk 0:00:29.6]} 69... Qxh5 {[%clk
0:00:38]} 70. Rh3 {[%clk 0:00:30.1]} 70... Qg6 {[%clk 0:00:38.4]} 71. Qh1 {[%clk
0:00:26.5]} 71... Ne7 {[%clk 0:00:38.5]} 72. Rgh4 {[%clk 0:00:20.9]} 72... Nf5
{[%clk 0:00:30.7]} 73. Rh8 {[%clk 0:00:20.4]} 73... Bxg5 {[%clk 0:00:30.4]} 74.
fxg5 {[%clk 0:00:20.1]} 74... Qxg5+ {[%clk 0:00:31.3]} 75. Kc2 {[%clk
0:00:20.6]} 75... Ne3+ {[%clk 0:00:30.4]} 76. Rxe3 {[%clk 0:00:20.4]} 76... Qxe3
{[%clk 0:00:30.3]} 77. Kb3 {[%clk 0:00:18.2]} 77... Qe2 {[%clk 0:00:29.6]} 78.
Rh2 {[%clk 0:00:15.1]} 78... Qc4+ {[%clk 0:00:27]} 79. Kb2 {[%clk 0:00:15.6]}
79... c5 {[%clk 0:00:26.7]} 80. dxc5 {[%clk 0:00:16]} 80... Kc6 {[%clk 0:00:27]}
81. Rd2 {[%clk 0:00:15.3]} 81... Kb5 {[%clk 0:00:26.4]} 82. Qf3 {[%clk 0:00:13]}
82... Ka4 {[%clk 0:00:23.7]} 83. Qd1+ {[%clk 0:00:13.1]} 83... Kb5 {[%clk
0:00:23.8]} 84. Qe2 {[%clk 0:00:13.7]} 1-0

[Event "*** Titled Tuesday Blitz"]
[Site "Chess.com"]
[Date "2020.05.12"]
[Round "5"]
[White "124chess"]
[Black "Oglob71"]
[Result "1-0"]
[WhiteElo "2792"]
[BlackElo "2506"]
[TimeControl "180+1"]
[EndTime "10:57:27 PDT"]
[Termination "124chess won by resignation"]

1. e4 {[%clk 0:01:46.4]} 1... c5 {[%clk 0:02:59.4]} 2. Be2 {[%clk 0:01:46.3]}
2... Nc6 {[%clk 0:02:58.3]} 3. f4 {[%clk 0:01:46.5]} 3... e6 {[%clk 0:02:57.6]}
4. Nf3 {[%clk 0:01:46.3]} 4... d5 {[%clk 0:02:56.7]} 5. d3 {[%clk 0:01:46.7]}
5... Nf6 {[%clk 0:02:56.2]} 6. e5 {[%clk 0:01:46.8]} 6... Nd7 {[%clk 0:02:55.8]}
7. O-O {[%clk 0:01:47.7]} 7... Be7 {[%clk 0:02:55.5]} 8. c3 {[%clk 0:01:47.7]}
8... b5 {[%clk 0:02:55.7]} 9. Kh1 {[%clk 0:01:43.2]} 9... b4 {[%clk 0:02:51.9]}
10. c4 {[%clk 0:01:43.3]} 10... Nb6 {[%clk 0:02:50.1]} 11. Be3 {[%clk
0:01:37.4]} 11... Bb7 {[%clk 0:02:49.6]} 12. Nbd2 {[%clk 0:01:36.6]} 12... O-O
{[%clk 0:02:48.6]} 13. Rc1 {[%clk 0:01:35.9]} 13... dxc4 {[%clk 0:02:37.3]} 14.
dxc4 {[%clk 0:01:35.5]} 14... Nd4 {[%clk 0:02:35.5]} 15. Bxd4 {[%clk 0:01:34.4]}
15... cxd4 {[%clk 0:02:35.6]} 16. Bd3 {[%clk 0:01:35.1]} 16... Rc8 {[%clk
0:02:33.4]} 17. Qe2 {[%clk 0:01:33]} 17... g6 {[%clk 0:02:31.6]} 18. Ne4 {[%clk
0:01:31.8]} 18... Na4 {[%clk 0:02:20.4]} 19. Rfd1 {[%clk 0:01:27.7]} 19... Nc5
{[%clk 0:02:18.6]} 20. Nxc5 {[%clk 0:01:27.8]} 20... Bxc5 {[%clk 0:02:18.2]} 21.
Be4 {[%clk 0:01:28.4]} 21... Qb6 {[%clk 0:02:12]} 22. b3 {[%clk 0:01:26.4]}
22... Rfd8 {[%clk 0:02:10.4]} 23. Rd3 {[%clk 0:01:25.2]} 23... a5 {[%clk
0:02:05.3]} 24. Ng5 {[%clk 0:01:25.3]} 24... a4 {[%clk 0:02:04.1]} 25. Bxb7
{[%clk 0:00:57.2]} 25... Qxb7 {[%clk 0:02:03.9]} 26. Ne4 {[%clk 0:00:57.8]}
26... Be7 {[%clk 0:02:03.3]} 27. Rcd1 {[%clk 0:00:58.2]} 27... Qb6 {[%clk
0:01:56]} 28. h3 {[%clk 0:00:58.3]} 28... Kg7 {[%clk 0:01:47.6]} 29. Qd2 {[%clk
0:00:47.1]} 29... axb3 {[%clk 0:01:47.2]} 30. axb3 {[%clk 0:00:47]} 30... Ra8
{[%clk 0:01:46.4]} 31. Rxd4 {[%clk 0:00:42.8]} 31... Rxd4 {[%clk 0:01:46.1]} 32.
Qxd4 {[%clk 0:00:43.7]} 32... Qxd4 {[%clk 0:01:46.4]} 33. Rxd4 {[%clk
0:00:43.6]} 33... Ra1+ {[%clk 0:01:46.9]} 34. Kh2 {[%clk 0:00:43.1]} 34... Rb1
{[%clk 0:01:46.8]} 35. Rd3 {[%clk 0:00:43.1]} 35... Re1 {[%clk 0:01:46.6]} 36.
Nd6 {[%clk 0:00:42.1]} 36... g5 {[%clk 0:01:44]} 37. Kg3 {[%clk 0:00:25.2]}
37... Rc1 {[%clk 0:01:31]} 38. Kf3 {[%clk 0:00:19.3]} 38... Kg6 {[%clk
0:01:26.5]} 39. g3 {[%clk 0:00:15.9]} 39... h5 {[%clk 0:01:26]} 40. Ne4 {[%clk
0:00:10.5]} 40... h4 {[%clk 0:01:17.3]} 41. gxh4 {[%clk 0:00:10.2]} 41... gxf4
{[%clk 0:01:16.1]} 42. Nd6 {[%clk 0:00:10.2]} 42... Bxh4 {[%clk 0:01:15.1]} 43.
Kxf4 {[%clk 0:00:10.4]} 43... Bg5+ {[%clk 0:01:15]} 44. Ke4 {[%clk 0:00:10.9]}
44... f5+ {[%clk 0:01:05.6]} 45. exf6 {[%clk 0:00:10.9]} 45... Kxf6 {[%clk
0:01:05.5]} 46. Rf3+ {[%clk 0:00:11.2]} 46... Ke7 {[%clk 0:01:04.8]} 47. Nb5
{[%clk 0:00:11.7]} 47... Re1+ {[%clk 0:01:02.3]} 48. Kd3 {[%clk 0:00:12]} 48...
Rd1+ {[%clk 0:01:01.1]} 49. Ke4 {[%clk 0:00:09.3]} 49... Re1+ {[%clk 0:01:00.9]}
50. Kd4 {[%clk 0:00:09.8]} 50... e5+ {[%clk 0:00:50.6]} 51. Kd5 {[%clk
0:00:09.6]} 51... e4 {[%clk 0:00:51]} 52. Rg3 {[%clk 0:00:09.9]} 52... Bf6
{[%clk 0:00:50]} 53. Rg4 {[%clk 0:00:06.7]} 53... e3 {[%clk 0:00:50.2]} 54. Re4+
{[%clk 0:00:06.8]} 54... Kf7 {[%clk 0:00:50.5]} 55. Kc6 {[%clk 0:00:07]} 55...
Bg5 {[%clk 0:00:45.9]} 56. c5 {[%clk 0:00:07.2]} 56... Rb1 {[%clk 0:00:45.7]}
57. Nd4 {[%clk 0:00:07.5]} 57... Kg6 {[%clk 0:00:37.6]} 58. h4 {[%clk
0:00:07.7]} 58... Bf6 {[%clk 0:00:35.4]} 59. Nc2 {[%clk 0:00:04.2]} 59... Rxb3
{[%clk 0:00:33.4]} 60. Nxe3 {[%clk 0:00:04.8]} 60... Rc3 {[%clk 0:00:31.9]} 61.
Nd5 {[%clk 0:00:05.1]} 61... Rb3 {[%clk 0:00:24.7]} 62. Rg4+ {[%clk 0:00:04.1]}
62... Kf5 {[%clk 0:00:24.6]} 63. Rf4+ {[%clk 0:00:04]} 63... Ke5 {[%clk
0:00:25.1]} 64. Rxf6 {[%clk 0:00:04.3]} 64... Rh3 {[%clk 0:00:22.9]} 65. Rf1
{[%clk 0:00:04.1]} 65... Rxh4 {[%clk 0:00:21.3]} 66. Nxb4 {[%clk 0:00:04.1]}
66... Rxb4 {[%clk 0:00:20.5]} 67. Rd1 {[%clk 0:00:04.5]} 67... Ke6 {[%clk
0:00:19.5]} 68. Kc7 {[%clk 0:00:04.8]} 68... Ke7 {[%clk 0:00:19.7]} 69. c6
{[%clk 0:00:05.2]} 69... Rb5 {[%clk 0:00:18.3]} 70. Re1+ {[%clk 0:00:05.5]}
70... Kf7 {[%clk 0:00:18.7]} 71. Kd7 {[%clk 0:00:05.9]} 71... Rd5+ {[%clk
0:00:18.5]} 72. Kc8 {[%clk 0:00:06.1]} 72... Rd2 {[%clk 0:00:18.6]} 73. c7
{[%clk 0:00:06.5]} 73... Rb2 {[%clk 0:00:18.5]} 74. Re4 {[%clk 0:00:05.3]} 74...
Rb5 {[%clk 0:00:18.4]} 75. Kd7 {[%clk 0:00:04.7]} 75... Rd5+ {[%clk 0:00:18.1]}
76. Kc6 {[%clk 0:00:05]} 76... Rd1 {[%clk 0:00:18.6]} 77. c8=Q {[%clk
0:00:05.4]} 77... Rc1+ {[%clk 0:00:19.2]} 78. Kd7 {[%clk 0:00:06]} 78... Rxc8
{[%clk 0:00:19.6]} 79. Kxc8 {[%clk 0:00:06.9]} 1-0

[Event "*** Titled Tuesday Blitz"]
[Site "Chess.com"]
[Date "2020.05.12"]
[Round "5"]
[White "Pedrada88"]
[Black "Love_craft"]
[Result "0-1"]
[WhiteElo "2383"]
[BlackElo "2560"]
[TimeControl "180+1"]
[EndTime "10:57:37 PDT"]
[Termination "Love_craft won by resignation"]

1. Nf3 {[%clk 0:03:00.9]} 1... Nf6 {[%clk 0:02:59.7]} 2. g3 {[%clk 0:03:01.2]}
2... g6 {[%clk 0:03:00.1]} 3. Bg2 {[%clk 0:03:01.4]} 3... Bg7 {[%clk 0:03:00.7]}
4. d4 {[%clk 0:03:02]} 4... O-O {[%clk 0:03:01.4]} 5. O-O {[%clk 0:03:01.3]}
5... d6 {[%clk 0:03:01.9]} 6. a4 {[%clk 0:03:01]} 6... c6 {[%clk 0:02:55.6]} 7.
a5 {[%clk 0:03:00.8]} 7... Na6 {[%clk 0:02:53.4]} 8. Nc3 {[%clk 0:02:57.8]} 8...
d5 {[%clk 0:02:52.5]} 9. Ne5 {[%clk 0:02:50.2]} 9... Nd7 {[%clk 0:02:50.9]} 10.
Nxd7 {[%clk 0:02:42.6]} 10... Bxd7 {[%clk 0:02:51.8]} 11. e4 {[%clk 0:02:39.6]}
11... dxe4 {[%clk 0:02:50.8]} 12. Nxe4 {[%clk 0:02:40.5]} 12... Be6 {[%clk
0:02:43.8]} 13. c3 {[%clk 0:02:40.2]} 13... Bd5 {[%clk 0:02:43.8]} 14. Re1
{[%clk 0:02:39.3]} 14... Qd7 {[%clk 0:02:39.4]} 15. h4 {[%clk 0:02:30.4]} 15...
Rad8 {[%clk 0:02:35.1]} 16. h5 {[%clk 0:02:30.3]} 16... Qf5 {[%clk 0:02:17.7]}
17. g4 {[%clk 0:02:20.7]} 17... Qc8 {[%clk 0:02:08.6]} 18. h6 {[%clk 0:02:20.6]}
18... Bh8 {[%clk 0:02:06.5]} 19. Bg5 {[%clk 0:02:17]} 19... Rfe8 {[%clk
0:01:47.4]} 20. Qc2 {[%clk 0:01:56.1]} 20... Qxg4 {[%clk 0:01:33.5]} 21. Bd2
{[%clk 0:01:32.8]} 21... e5 {[%clk 0:01:00.7]} 22. c4 {[%clk 0:01:12]} 22...
Bxe4 {[%clk 0:00:59.1]} 23. Rxe4 {[%clk 0:01:12.9]} 23... Qf5 {[%clk 0:00:58.6]}
24. dxe5 {[%clk 0:00:46.2]} 24... Nc5 {[%clk 0:00:57.1]} 25. a6 {[%clk
0:00:23.8]} 25... Nxe4 {[%clk 0:00:29.1]} 26. Bxe4 {[%clk 0:00:24]} 26... Qg4+
{[%clk 0:00:28.2]} 27. Bg2 {[%clk 0:00:24.1]} 27... b6 {[%clk 0:00:22.8]} 28.
Bc3 {[%clk 0:00:18.2]} 28... Qg5 {[%clk 0:00:15.8]} 29. Re1 {[%clk 0:00:13.7]}
29... Qxh6 {[%clk 0:00:15.6]} 30. Bxc6 {[%clk 0:00:12.5]} 30... Qg5+ {[%clk
0:00:15.7]} 31. Kf1 {[%clk 0:00:12.1]} 31... Re7 {[%clk 0:00:11.7]} 32. Bd5
{[%clk 0:00:11]} 32... Bxe5 {[%clk 0:00:10.7]} 33. Bb4 {[%clk 0:00:07.4]} 33...
Bd6 {[%clk 0:00:09.7]} 34. Rxe7 {[%clk 0:00:05.1]} 34... Bxe7 {[%clk 0:00:09.5]}
35. Bc3 {[%clk 0:00:04.3]} 35... Bf6 {[%clk 0:00:09.8]} 36. Bxf6 {[%clk
0:00:02.9]} 36... Qxf6 {[%clk 0:00:09.6]} 37. Qe2 {[%clk 0:00:03.8]} 37... Qd6
{[%clk 0:00:07.7]} 38. Qf3 {[%clk 0:00:03.3]} 38... Qe7 {[%clk 0:00:07.4]} 39.
b3 {[%clk 0:00:02.8]} 39... Re8 {[%clk 0:00:07.6]} 40. Qf4 {[%clk 0:00:02.6]}
40... Qe1+ {[%clk 0:00:06.7]} 41. Kg2 {[%clk 0:00:02.9]} 41... Qe7 {[%clk
0:00:07.2]} 42. Kg1 {[%clk 0:00:02.7]} 42... Kg7 {[%clk 0:00:07.3]} 43. Kf1
{[%clk 0:00:03]} 43... Qf6 {[%clk 0:00:07.2]} 44. Qc7 {[%clk 0:00:02.9]} 44...
Re7 {[%clk 0:00:07.6]} 45. Qb8 {[%clk 0:00:02.3]} 45... h5 {[%clk 0:00:07.6]}
46. Qg3 {[%clk 0:00:02.1]} 46... Qa1+ {[%clk 0:00:07]} 47. Kg2 {[%clk
0:00:02.2]} 47... Qe5 {[%clk 0:00:07.3]} 48. Qf3 {[%clk 0:00:01.6]} 48... Qg5+
{[%clk 0:00:07.1]} 49. Kf1 {[%clk 0:00:02]} 49... Qf6 {[%clk 0:00:07.3]} 50. Qg3
{[%clk 0:00:01.8]} 50... h4 {[%clk 0:00:07.6]} 51. Qg4 {[%clk 0:00:02.3]} 51...
Qa1+ {[%clk 0:00:06.1]} 52. Kg2 {[%clk 0:00:02.5]} 52... Qf6 {[%clk 0:00:06.7]}
53. Kf1 {[%clk 0:00:02.8]} 53... g5 {[%clk 0:00:06.1]} 54. Kg2 {[%clk 0:00:03]}
54... Qf4 {[%clk 0:00:06]} 55. Qh5 {[%clk 0:00:03.2]} 55... f5 {[%clk 0:00:04]}
56. Kf1 {[%clk 0:00:02.4]} 56... Qg4 {[%clk 0:00:04.3]} 57. Qxg4 {[%clk
0:00:02.1]} 57... fxg4 {[%clk 0:00:05.2]} 58. Bb7 {[%clk 0:00:03]} 58... Kf6
{[%clk 0:00:05.2]} 59. b4 {[%clk 0:00:03.4]} 59... Ke5 {[%clk 0:00:05.3]} 60. c5
{[%clk 0:00:03.5]} 60... bxc5 {[%clk 0:00:05.4]} 61. b5 {[%clk 0:00:04.4]} 61...
Kd6 {[%clk 0:00:04.6]} 62. b6 {[%clk 0:00:04.8]} 62... axb6 {[%clk 0:00:04.9]}
63. a7 {[%clk 0:00:05.7]} 63... Re8 {[%clk 0:00:05.4]} 64. a8=Q {[%clk
0:00:05.9]} 64... Rxa8 {[%clk 0:00:05.8]} 65. Bxa8 {[%clk 0:00:06.8]} 65... b5
{[%clk 0:00:05.5]} 66. Be4 {[%clk 0:00:06.9]} 66... Ke5 {[%clk 0:00:05.6]} 67.
Bc2 {[%clk 0:00:05.6]} 67... c4 {[%clk 0:00:05.5]} 68. Ke2 {[%clk 0:00:05.4]}
68... Kf4 {[%clk 0:00:05.4]} 69. Bg6 {[%clk 0:00:03.8]} 69... b4 {[%clk
0:00:05.3]} 70. Bf7 {[%clk 0:00:04]} 70... c3 {[%clk 0:00:05.5]} 71. Bd5 {[%clk
0:00:03.7]} 71... g3 {[%clk 0:00:05.1]} 72. fxg3+ {[%clk 0:00:03.1]} 72... Kxg3
{[%clk 0:00:06]} 73. Kd3 {[%clk 0:00:03.5]} 73... h3 {[%clk 0:00:05.7]} 74. Kc2
{[%clk 0:00:03.8]} 74... Kh2 {[%clk 0:00:05]} 75. Kb3 {[%clk 0:00:04.2]} 75...
g4 {[%clk 0:00:05.6]} 76. Kxb4 {[%clk 0:00:04.7]} 76... c2 {[%clk 0:00:05.6]}
0-1